bitfinex/quotes_SOLUSD_20241024
["timestamp","ask_amount","ask_price","bid_price","bid_amount"]
[1729799601874,19.84322772,177.3,177.23,6.0866]
[1729799602178,19.84322772,177.28,177.23,19.84322772]
[1729799602365,19.84322772,177.29,177.24,19.84322772]
[1729799602556,19.84322772,177.3,177.24,19.84322772]
[1729799603571,19.84322772,177.3,177.25,19.84322772]
[1729799604772,0.12549,177.3,177.25,19.84322772]
[1729799604973,19.96871772,177.3,177.25,19.84322772]
[1729799607080,16.84951674,177.32,177.28,19.84322772]
[1729799609280,36.69274446,177.32,177.22,23.776884]
[1729799609483,36.69274446,177.32,177.26,19.84322772]
[1729799609686,36.69274446,177.32,177.27,19.84322772]
[1729799609873,16.84951674,177.32,177.28,19.84322772]
[1729799610780,0.81911674,177.32,177.28,19.84322772]
[1729799611979,0.81911674,177.32,177.29,19.84322772]
[1729799612184,0.81911674,177.32,177.22,23.876884]
[1729799612481,0.81911674,177.32,177.28,19.84322772]
[1729799613064,0.81911674,177.32,177.22,23.876884]
[1729799613065,0.81911674,177.32,177.29,19.84322772]
[1729799614586,0.81911674,177.32,177.3,19.84322772]
[1729799615071,0.81911674,177.32,177.29,19.84322772]
[1729799616568,0.5489902,177.33,177.32,0.18088326]
[1729799619192,40.76868792,177.33,177.32,0.18088326]
[1729799619365,46.40788792,177.33,177.32,0.18088326]
[1729799619571,70.18477192,177.33,177.32,0.18088326]
[1729799625071,74.40911056,177.33,177.32,0.18088326]
[1729799625489,70.18477192,177.33,177.32,0.18088326]
[1729799625766,71.03095402,177.33,177.32,0.18088326]
[1729799626189,75.25521725,177.33,177.32,0.18088326]
[1729799627190,71.03095402,177.33,177.32,0.18088326]
[1729799633293,44.153354,177.32,177.24,19.84322772]
[1729799633476,0.12549,177.29,177.24,19.84322772]
[1729799633977,0.12549,177.29,177.25,19.84322772]
[1729799634369,40.09420772,177.3,177.23,19.84322772]
[1729799634370,0.37647,177.27,177.23,19.84322772]
[1729799637427,0.25098,177.27,177.24,19.84322772]
[1729799637701,20.0,177.29,177.26,19.84322772]
[1729799637873,1.21428904,177.33,177.28,19.84322772]
[1729799638079,1.21428904,177.33,177.3,19.84322772]
[1729799639087,1.21428904,177.33,177.29,19.84322772]
[1729799639290,4.22405185,177.32,177.29,19.84322772]
[1729799640006,4.22405185,177.32,177.28,19.84322772]
[1729799641706,24.06727957,177.32,177.27,19.84322772]
[1729799641907,44.06727957,177.32,177.27,19.84322772]
[1729799642407,44.06727957,177.32,177.27,9.92161386]
[1729799642408,0.37647,177.31,177.27,9.92161386]
[1729799642614,20.21969772,177.31,177.25,19.84322772]
[1729799642786,19.84322772,177.3,177.25,19.84322772]
[1729799644601,20.21969772,177.31,177.25,19.84322772]
[1729799648001,20.21969772,177.31,177.21,79.37291088]
[1729799648002,19.84322772,177.29,177.24,19.84322772]
[1729799648208,19.84322772,177.3,177.24,19.84322772]
[1729799648389,0.25098,177.29,177.24,19.84322772]
[1729799649402,0.12549,177.27,177.24,19.84322772]
[1729799649602,0.25098,177.27,177.24,19.84322772]
[1729799649825,0.25098,177.27,177.23,19.84322772]
[1729799650307,0.12549,177.28,177.25,19.84322772]
[1729799650494,0.25098,177.28,177.25,19.84322772]
[1729799652911,0.25098,177.28,177.24,19.84322772]
[1729799653410,0.25098,177.28,177.25,9.92161386]
[1729799653616,0.25098,177.28,177.25,19.84322772]
[1729799658518,0.25098,177.28,177.19,23.0342]
[1729799658818,0.25098,177.28,177.24,19.84322772]
[1729799659117,0.25098,177.28,177.25,19.84322772]
[1729799663219,0.84620046,177.29,177.26,19.84322772]
[1729799663716,0.84620046,177.29,177.28,19.84322772]
[1729799665123,0.36810694,177.33,177.28,19.84322772]
[1729799665416,0.36810694,177.33,177.3,19.84322772]
[1729799669123,20.36810694,177.33,177.29,19.84322772]
[1729799669793,20.36810694,177.33,177.3,19.84322772]
[1729799669998,0.25098,177.32,177.28,19.84322772]
[1729799671210,0.25098,177.29,177.25,19.84322772]
[1729799672112,0.12549,177.28,177.24,19.84322772]
[1729799677328,0.12549,177.28,177.19,22.9342]
[1729799677509,0.12549,177.28,177.23,19.84322772]
[1729799680123,19.96871772,177.28,177.23,19.84322772]
[1729799680327,0.25098,177.27,177.25,19.84322772]
[1729799680535,0.25098,177.28,177.25,19.84322772]
[1729799681014,0.25098,177.28,177.21,79.37291088]
[1729799681327,0.846133,177.31,177.27,19.84322772]
[1729799681515,0.846133,177.31,177.28,19.84322772]
[1729799681724,0.846133,177.31,177.29,19.84322772]
[1729799682649,0.846133,177.31,177.3,19.84322772]
[1729799684336,0.25098,177.32,177.3,19.84322772]
[1729799684536,0.25098,177.32,177.29,19.84322772]
[1729799688240,1.21425324,177.33,177.31,19.84322772]
[1729799688535,1.21425324,177.33,177.32,19.84322772]
[1729799689036,1.21425324,177.33,177.27,6.481]
[1729799689538,1.21425324,177.33,177.29,19.84322772]
[1729799689924,1.21425324,177.33,177.3,19.84322772]
[1729799691131,1.21425324,177.33,177.29,19.84322772]
[1729799691540,0.25098,177.32,177.29,19.84322772]
[1729799693019,0.25098,177.32,177.31,0.28]
[1729799697547,1.21425324,177.33,177.31,20.12322772]
[1729799697844,1.21425324,177.33,177.32,19.84322772]
[1729799700268,1.21425324,177.33,177.31,0.28]
[1729799701144,1.21425324,177.33,177.32,19.84322772]
[1729799701747,3.24,177.46,177.33,23.776884]
[1729799701928,19.84322772,177.45,177.4,19.84322772]
[1729799702129,19.84322772,177.44,177.39,19.84322772]
[1729799702328,26.32471225,177.44,177.39,19.84322772]
[1729799702523,0.84568453,177.44,177.4,19.84322772]
[1729799703049,0.12549,177.43,177.39,19.84322772]
[1729799703246,0.84568453,177.44,177.41,19.84322772]
[1729799706250,0.84568453,177.44,177.33,23.876884]
[1729799706451,0.84568453,177.44,177.4,19.84322772]
[1729799707033,0.25098,177.41,177.37,19.84322772]
[1729799707338,20.09420772,177.41,177.36,19.84322772]
[1729799709153,0.25098,177.41,177.37,19.84322772]
[1729799709741,0.25098,177.41,177.32,16.3622]
[1729799709742,0.25098,177.41,177.38,19.84322772]
[1729799711454,15.1786,177.48,177.4,19.84322772]
[1729799711756,15.1786,177.48,177.34,0.1]
[1729799711757,35.02182772,177.48,177.42,19.84322772]
[1729799712132,0.12549,177.47,177.42,19.84322772]
[1729799712332,5.76019,177.47,177.42,19.84322772]
[1729799712850,0.37647,177.45,177.42,19.84322772]
[1729799714052,25.85519772,177.45,177.4,19.84322772]
[1729799715035,6.01197,177.45,177.41,19.84322772]
[1729799717751,5.6355,177.45,177.41,19.84322772]
[1729799717955,20.84548133,177.47,177.43,19.84322772]
[1729799718335,0.84548133,177.47,177.43,19.84322772]
[1729799718944,25.60371772,177.46,177.41,19.84322772]
[1729799719147,0.25098,177.45,177.41,19.84322772]
[1729799719758,20.25098,177.45,177.38,6.5771]
[1729799719950,25.88638,177.45,177.41,19.84322772]
[1729799720258,45.72960772,177.45,177.4,19.84322772]
[1729799721973,45.72960772,177.45,177.38,6.5771]
[1729799722181,45.72960772,177.45,177.4,19.84322772]
[1729799722656,45.72960772,177.45,177.38,6.5771]
[1729799722657,19.84322772,177.42,177.34,6.2532]
[1729799722961,25.47982772,177.42,177.37,19.84322772]
[1729799724344,20.09420772,177.41,177.36,9.92161386]
[1729799724568,19.84322772,177.37,177.31,0.28]
[1729799724771,19.84322772,177.36,177.31,20.12322772]
[1729799725645,20.68907014,177.37,177.32,19.84322772]
[1729799725841,0.25098,177.36,177.32,19.84322772]
[1729799726065,0.25098,177.36,177.33,19.84322772]
[1729799726667,0.84584242,177.37,177.34,19.84322772]
[1729799727256,0.84584242,177.37,177.36,19.84322772]
[1729799727769,0.84584242,177.37,177.35,19.84322772]
[1729799728865,0.84584242,177.37,177.36,19.84322772]
[1729799732170,0.25098,177.43,177.36,19.84322772]
[1729799732361,0.25098,177.43,177.39,19.84322772]
[1729799733071,0.25098,177.43,177.38,19.84322772]
[1729799733270,20.09420772,177.43,177.38,19.84322772]
[1729799733456,5.88698,177.43,177.38,19.84322772]
[1729799733953,5.88698,177.43,177.39,19.84322772]
[1729799734365,0.25098,177.43,177.41,19.84322772]
[1729799734668,6.48028133,177.47,177.42,19.84322772]
[1729799734873,20.0,177.46,177.42,19.84322772]
[1729799735251,6.48028133,177.47,177.42,19.84322772]
[1729799736568,0.84548133,177.47,177.44,19.84322772]
[1729799736781,0.84548133,177.47,177.45,19.84322772]
[1729799737158,0.37647,177.48,177.44,19.84322772]
[1729799737852,6.01097,177.48,177.43,19.84322772]
[1729799738055,19.84322772,177.47,177.41,19.84322772]
[1729799738748,20.0,177.47,177.43,19.84322772]
[1729799739152,0.12549,177.45,177.4,19.84322772]
[1729799739355,0.25098,177.43,177.38,19.84322772]
[1729799739776,0.25098,177.43,177.39,19.84322772]
[1729799740865,5.88718,177.43,177.38,19.84322772]
[1729799741253,5.88718,177.43,177.39,19.84322772]
[1729799741672,5.88718,177.43,177.38,19.84322772]
[1729799742259,5.88718,177.43,177.35,15.6791]
[1729799742463,5.88718,177.43,177.33,6.1333]
[1729799742464,19.96871772,177.42,177.33,6.1333]
[1729799742777,0.25098,177.41,177.36,19.84322772]
[1729799742977,0.25098,177.41,177.38,19.84322772]
[1729799743273,0.25098,177.41,177.37,19.84322772]
[1729799744160,5.88768,177.41,177.37,19.84322772]
[1729799745357,26.31940317,177.44,177.38,19.84322772]
[1729799745678,39.84322772,177.43,177.38,19.84322772]
[1729799746455,0.25098,177.42,177.38,19.84322772]
[1729799747163,0.12549,177.42,177.39,19.84322772]
[1729799747377,0.84027545,177.44,177.41,19.84322772]
[1729799747586,0.84027545,177.44,177.42,19.84322772]
[1729799747959,0.84027545,177.44,177.34,23.776884]
[1729799748287,0.84027545,177.44,177.4,19.84322772]
[1729799749356,6.47597545,177.44,177.4,19.84322772]
[1729799749563,6.47597545,177.44,177.39,19.84322772]
[1729799749963,26.31920317,177.44,177.39,19.84322772]
[1729799750480,20.68350317,177.44,177.39,19.84322772]
[1729799750775,20.68350317,177.44,177.38,19.84322772]
[1729799750776,20.09420772,177.43,177.38,19.84322772]
[1729799750986,0.25098,177.43,177.4,19.84322772]
[1729799754584,0.25098,177.43,177.39,19.84322772]
[1729799755582,0.25098,177.43,177.34,43.776884]
[1729799755889,0.25098,177.43,177.38,19.84322772]
[1729799756385,0.25098,177.43,177.37,19.84322772]
[1729799756386,19.84322772,177.42,177.37,19.84322772]
[1729799756582,0.25098,177.43,177.38,19.84322772]
[1729799756785,20.25098,177.43,177.38,19.84322772]
[1729799756993,40.09420772,177.43,177.38,19.84322772]
[1729799757564,20.25098,177.43,177.39,19.84322772]
[1729799757980,5.6347,177.47,177.42,19.84322772]
[1729799758166,15.7635,177.49,177.44,19.84322772]
[1729799758376,15.7635,177.49,177.45,19.84322772]
[1729799758570,35.60672772,177.49,177.44,19.84322772]
[1729799758979,15.7635,177.49,177.44,19.84322772]
[1729799759568,20.25098,177.48,177.44,19.84322772]
[1729799759771,20.0,177.48,177.44,19.84322772]
[1729799760185,0.12549,177.47,177.38,15.3124]
[1729799760395,19.96871772,177.47,177.41,19.84322772]
[1729799760873,19.96871772,177.47,177.42,19.84322772]
[1729799761072,6.2307427,177.51,177.44,19.84322772]
[1729799761272,19.84322772,177.49,177.44,19.84322772]
[1729799761464,19.96871772,177.48,177.43,19.84322772]
[1729799762288,0.25098,177.47,177.42,19.84322772]
[1729799762498,20.09420772,177.47,177.37,20.0]
[1729799762666,20.09420772,177.47,177.36,30.172984]
[1729799762667,0.25098,177.45,177.41,19.84322772]
[1729799762871,20.09420772,177.45,177.39,19.84322772]
[1729799763892,22.14146427,177.48,177.42,19.84322772]
[1729799764102,0.37647,177.47,177.42,19.84322772]
[1729799764295,20.21969772,177.47,177.41,19.84322772]
[1729799764473,0.25098,177.47,177.43,19.84322772]
[1729799764679,20.5970427,177.51,177.46,19.84322772]
[1729799764985,19.84322772,177.5,177.44,19.84322772]
[1729799765183,19.84322772,177.49,177.44,19.84322772]
[1729799765383,19.84322772,177.5,177.44,19.84322772]
[1729799765606,0.12549,177.5,177.44,19.84322772]
[1729799765897,19.96871772,177.5,177.44,19.84322772]
[1729799766308,0.25098,177.49,177.44,19.84322772]
[1729799766475,20.09420772,177.49,177.44,19.84322772]
[1729799766684,19.84322772,177.48,177.42,19.84322772]
[1729799767578,20.67959848,177.47,177.42,19.84322772]
[1729799767779,0.83637076,177.47,177.42,19.84322772]
[1729799767978,20.67959848,177.47,177.42,19.84322772]
[1729799768390,0.83637076,177.47,177.42,19.84322772]
[1729799768903,0.25098,177.46,177.42,19.84322772]
[1729799770010,0.25098,177.46,177.41,19.84322772]
[1729799770215,20.09420772,177.46,177.4,19.84322772]
[1729799770585,19.84322772,177.45,177.4,19.84322772]
[1729799771326,19.84322772,177.42,177.36,26.23932772]
[1729799771491,19.84322772,177.42,177.37,19.84322772]
[1729799771807,22.18748,177.46,177.4,19.84322772]
[1729799771808,39.84322772,177.45,177.4,19.84322772]
[1729799771983,19.84322772,177.44,177.39,19.84322772]
[1729799772390,30.90156812,177.44,177.39,30.90156812]
[1729799772585,31.73803697,177.45,177.4,30.90156812]
[1729799773511,0.83646885,177.45,177.41,30.90156812]
[1729799774514,0.83646885,177.45,177.4,30.90156812]
[1729799775329,53.08924812,177.46,177.4,30.90156812]
[1729799775620,30.90156812,177.45,177.4,30.90156812]
[1729799776513,30.90156812,177.43,177.36,6.3961]
[1729799776695,0.25098,177.42,177.37,30.90156812]
[1729799778201,0.25098,177.42,177.38,30.90156812]
[1729799780618,0.25098,177.42,177.37,30.90156812]
[1729799780810,5.88738,177.42,177.37,30.90156812]
[1729799781818,0.25098,177.42,177.37,30.90156812]
[1729799784610,0.25098,177.42,177.38,30.90156812]
[1729799786112,0.25098,177.42,177.39,30.90156812]
[1729799786297,0.83657492,177.43,177.4,30.90156812]
[1729799786500,0.83657492,177.43,177.41,30.90156812]
[1729799788616,0.83657492,177.43,177.4,30.90156812]
[1729799788820,0.83657492,177.43,177.41,30.90156812]
[1729799789519,0.83657492,177.43,177.4,30.90156812]
[1729799789728,0.83657492,177.43,177.41,30.90156812]
[1729799790015,0.83657492,177.43,177.4,30.90156812]
[1729799791728,0.12549,177.42,177.37,30.90156812]
[1729799792020,30.90156812,177.38,177.33,30.90156812]
[1729799792224,30.90156812,177.37,177.32,30.90156812]
[1729799792410,19.7931773,177.38,177.33,19.7931773]
[1729799792725,0.25098,177.38,177.33,19.7931773]
[1729799793023,20.0441573,177.38,177.33,19.7931773]
[1729799793218,0.25098,177.38,177.34,19.7931773]
[1729799794032,0.25098,177.38,177.35,19.7931773]
[1729799794407,0.12549,177.39,177.35,19.7931773]
[1729799794611,16.6604,177.4,177.35,19.7931773]
[1729799795923,16.6604,177.4,177.36,19.7931773]
[1729799796127,0.25098,177.42,177.39,19.7931773]
[1729799796709,0.83657492,177.43,177.41,19.7931773]
[1729799797034,0.83657492,177.43,177.35,21.9532]
[1729799797035,0.83657492,177.43,177.42,19.7931773]
[1729799799821,0.83657492,177.43,177.37,23.776884]
[1729799800131,0.83657492,177.43,177.42,19.7931773]
[1729799800331,0.83657492,177.43,177.42,30.89245312]
[1729799805232,0.5970427,177.51,177.43,65.589684]
[1729799805419,0.5970427,177.51,177.5,30.89245312]
[1729799812445,0.1,177.65,177.5,30.89245312]
[1729799812446,5.85997025,177.6,177.59,30.89245312]
[1729799812744,5.85997025,177.6,177.58,30.89245312]
[1729799812933,11.49067025,177.6,177.57,30.89245312]
[1729799813927,11.49067025,177.6,177.56,30.89245312]
[1729799814150,30.89245312,177.57,177.5,30.89245312]
[1729799814450,30.89245312,177.55,177.5,30.89245312]
[1729799814753,30.89245312,177.56,177.51,30.89245312]
[1729799815132,0.82862591,177.56,177.52,30.89245312]
[1729799815559,31.72107903,177.56,177.51,30.89245312]
[1729799816729,31.72107903,177.56,177.5,30.89245312]
[1729799817152,30.89245312,177.55,177.5,30.89245312]
[1729799818356,37.35297903,177.56,177.5,30.89245312]
[1729799818854,36.52435312,177.56,177.5,30.89245312]
[1729799819543,36.52435312,177.56,177.51,30.89245312]
[1729799819856,37.35297903,177.56,177.51,30.89245312]
[1729799820248,6.46052591,177.56,177.52,30.89245312]
[1729799821255,0.82862591,177.56,177.54,30.89245312]
[1729799821736,0.82862591,177.56,177.55,30.89245312]
[1729799822053,0.82862591,177.56,177.54,30.89245312]
[1729799822257,5.6311,177.59,177.54,30.89245312]
[1729799822629,30.89245312,177.58,177.52,30.89245312]
[1729799823057,36.52385312,177.58,177.52,30.89245312]
[1729799823244,30.89245312,177.56,177.5,30.89245312]
[1729799823441,5.6314,177.58,177.49,23.776884]
[1729799823442,30.89245312,177.55,177.49,54.66933712]
[1729799823853,30.89245312,177.55,177.49,30.89245312]
[1729799824233,30.89245312,177.54,177.48,30.89245312]
[1729799824935,30.89245312,177.52,177.47,20.0]
[1729799825348,30.89245312,177.51,177.46,30.89245312]
[1729799825545,30.89245312,177.5,177.45,30.89245312]
[1729799825752,30.89245312,177.48,177.42,30.89245312]
[1729799826771,30.89245312,177.48,177.43,30.89245312]
[1729799828058,30.89245312,177.49,177.43,30.89245312]
[1729799828644,36.52615312,177.51,177.45,30.89245312]
[1729799829757,36.52615312,177.51,177.46,30.89245312]
[1729799830059,30.89245312,177.51,177.46,30.89245312]
[1729799830257,31.72124332,177.52,177.46,30.89245312]
[1729799830858,0.8287902,177.52,177.49,30.89245312]
[1729799832148,0.8287902,177.52,177.48,30.89245312]
[1729799833359,31.72124332,177.52,177.46,30.89245312]
[1729799833564,37.35444332,177.52,177.46,30.89245312]
[1729799833750,30.89245312,177.51,177.46,30.89245312]
[1729799833958,30.89245312,177.49,177.44,30.89245312]
[1729799834144,30.89245312,177.49,177.43,30.89245312]
[1729799834641,30.89245312,177.46,177.41,30.89245312]
[1729799835054,5.6334,177.51,177.4,6.6487]
[1729799835055,30.89245312,177.47,177.42,30.89245312]
[1729799835459,30.89245312,177.48,177.43,30.89245312]
[1729799835667,30.89245312,177.49,177.43,30.89245312]
[1729799836738,30.89245312,177.48,177.43,30.89245312]
[1729799837064,36.52685312,177.49,177.43,30.89245312]
[1729799837956,30.89245312,177.48,177.43,30.89245312]
[1729799839171,30.89245312,177.47,177.42,30.89245312]
[1729799839371,36.52695312,177.48,177.42,30.89245312]
[1729799839566,36.52695312,177.48,177.43,30.89245312]
[1729799840270,36.52695312,177.48,177.42,30.89245312]
[1729799844575,30.89245312,177.47,177.42,30.89245312]
[1729799844777,30.89245312,177.47,177.41,30.89245312]
[1729799845562,30.89245312,177.47,177.42,30.89245312]
[1729799845971,36.52725312,177.47,177.42,30.89245312]
[1729799849054,5.6348,177.47,177.42,30.89245312]
[1729799850585,36.52725312,177.47,177.42,30.89245312]
[1729799851175,36.52725312,177.47,177.36,21.3304]
[1729799851176,30.89245312,177.44,177.36,6.179]
[1729799851368,30.89245312,177.44,177.38,30.89245312]
[1729799851573,30.89245312,177.45,177.39,30.89245312]
[1729799852278,30.89245312,177.44,177.39,30.89245312]
[1729799852476,36.52835312,177.44,177.39,30.89245312]
[1729799852869,36.52835312,177.44,177.38,30.89245312]
[1729799853657,30.89245312,177.4,177.34,30.89245312]
[1729799853971,30.89245312,177.39,177.34,30.89245312]
[1729799854179,30.89245312,177.4,177.34,30.89245312]
[1729799854773,36.52935312,177.4,177.34,30.89245312]
[1729799855173,30.89245312,177.39,177.34,30.89245312]
[1729799855473,36.52935312,177.4,177.34,30.89245312]
[1729799855853,5.6369,177.4,177.36,30.89245312]
[1729799856258,36.52885312,177.42,177.36,30.89245312]
[1729799857579,45.96575312,177.43,177.38,30.89245312]
[1729799857985,30.89245312,177.4,177.35,30.89245312]
[1729799858157,31.01794312,177.42,177.36,30.89245312]
[1729799858963,36.52905312,177.41,177.36,30.89245312]
[1729799859382,5.6366,177.41,177.36,30.89245312]
[1729799859663,36.52905312,177.41,177.35,30.89245312]
[1729799860083,36.52905312,177.41,177.32,6.1505]
[1729799860084,30.89245312,177.38,177.32,30.89245312]
[1729799860261,30.89245312,177.39,177.33,30.89245312]
[1729799860574,30.89245312,177.39,177.34,30.89245312]
[1729799861085,30.89245312,177.35,177.31,0.28]
[1729799861476,30.89245312,177.36,177.31,31.17245312]
[1729799862476,30.89245312,177.36,177.34,0.339]
[1729799864479,36.53035312,177.37,177.34,0.339]
[1729799865879,46.56065312,177.38,177.34,0.339]
[1729799866186,15.6682,177.38,177.34,31.23145312]
[1729799869075,15.6682,177.38,177.34,0.339]
[1729799869277,46.56065312,177.38,177.34,0.339]
[1729799869482,15.6682,177.38,177.34,0.339]
[1729799870784,15.6682,177.38,177.34,31.23145312]
[1729799871577,5.637,177.4,177.35,30.89245312]
[1729799871778,20.0,177.4,177.37,30.89245312]
[1729799872083,36.52845312,177.43,177.37,30.89245312]
[1729799872274,5.6366,177.41,177.37,30.89245312]
[1729799872587,5.6366,177.41,177.36,15.44622656]
[1729799872771,5.6366,177.41,177.36,30.89245312]
[1729799872973,36.52905312,177.41,177.36,30.89245312]
[1729799876470,36.52905312,177.41,177.35,30.89245312]
[1729799876871,5.6366,177.41,177.36,30.89245312]
[1729799878296,5.6366,177.41,177.37,19.7828434]
[1729799878484,25.88738,177.42,177.37,19.7828434]
[1729799878991,25.88738,177.42,177.38,19.7828434]
[1729799880775,25.88738,177.42,177.37,19.7828434]
[1729799881273,45.6702234,177.42,177.37,19.7828434]
[1729799882877,45.6702234,177.42,177.36,19.7828434]
[1729799884170,25.88738,177.42,177.36,19.7828434]
[1729799884376,45.6702234,177.42,177.36,20.1218434]
[1729799884776,45.6702234,177.42,177.37,19.7828434]
[1729799885294,45.6702234,177.42,177.36,20.1218434]
[1729799887097,25.88738,177.42,177.37,19.7828434]
[1729799887411,0.25098,177.42,177.39,19.7828434]
[1729799887702,5.6364,177.42,177.39,19.7828434]
[1729799888190,5.636,177.43,177.39,19.7828434]
[1729799888404,5.636,177.43,177.4,19.7828434]
[1729799889399,19.7828434,177.43,177.38,19.7828434]
[1729799890381,19.7828434,177.42,177.36,20.1218434]
[1729799891190,25.4190434,177.43,177.37,19.7828434]
[1729799893090,0.12549,177.4,177.31,6.9178]
[1729799893286,19.7828434,177.39,177.33,19.7828434]
[1729799893504,19.7828434,177.38,177.32,19.7828434]
[1729799893901,19.7828434,177.38,177.31,6.9178]
[1729799894095,19.7828434,177.38,177.32,19.7828434]
[1729799895313,25.4207434,177.37,177.31,20.0628434]
[1729799895509,19.7828434,177.36,177.31,0.28]
[1729799896418,19.7828434,177.36,177.31,20.0628434]
[1729799898418,25.4212434,177.36,177.31,20.0628434]
[1729799900919,25.4212434,177.36,177.31,0.28]
[1729799901518,25.4212434,177.36,177.31,20.0628434]
[1729799901708,5.6384,177.36,177.31,20.0628434]
[1729799901899,21.078,177.39,177.35,19.7828434]
[1729799902800,5.6373,177.39,177.36,19.7828434]
[1729799903400,25.88788,177.4,177.36,19.7828434]
[1729799904400,45.6707234,177.4,177.36,0.339]
[1729799904801,25.88788,177.4,177.36,0.339]
[1729799905009,45.6707234,177.4,177.36,0.339]
[1729799905820,25.88788,177.4,177.36,0.339]
[1729799906624,45.6707234,177.4,177.36,0.339]
[1729799906916,0.12549,177.42,177.37,19.7828434]
[1729799907119,16.5737,177.43,177.39,19.7828434]
[1729799907315,16.5737,177.43,177.4,19.7828434]
[1729799907509,16.5737,177.43,177.39,19.7828434]
[1729799908014,16.5737,177.43,177.36,0.339]
[1729799908318,22.2097,177.43,177.38,19.7828434]
[1729799909801,22.2097,177.43,177.39,19.7828434]
[1729799910900,22.2097,177.43,177.34,6.5126]
[1729799911101,41.9925434,177.43,177.37,19.7828434]
[1729799911400,19.7828434,177.41,177.36,19.7828434]
[1729799911605,20.0338234,177.38,177.31,0.28]
[1729799911811,20.0338234,177.38,177.33,19.7828434]
[1729799912322,0.25098,177.38,177.33,19.7828434]
[1729799912503,20.0338234,177.38,177.33,19.7828434]
[1729799912824,5.6379,177.37,177.31,0.28]
[1729799913121,5.6379,177.37,177.32,19.7828434]
[1729799914019,5.6379,177.37,177.33,19.7828434]
[1729799914625,5.6379,177.37,177.32,19.7828434]
[1729799916423,25.4207434,177.37,177.32,19.7828434]
[1729799921718,5.88858,177.38,177.34,19.7828434]
[1729799922218,25.6714234,177.38,177.33,19.7828434]
[1729799924629,5.88858,177.38,177.33,19.7828434]
[1729799925221,20.0,177.37,177.32,19.7828434]
[1729799926339,25.638,177.37,177.33,0.339]
[1729799927338,19.7828434,177.36,177.33,0.339]
[1729799927526,19.7828434,177.34,177.33,0.339]
[1729799928835,20.0338234,177.34,177.33,0.339]
[1729799929527,25.6726234,177.34,177.33,0.339]
[1729799931621,25.4216434,177.34,177.33,0.339]
[1729799931826,5.6388,177.34,177.33,0.339]
[1729799932528,25.4216434,177.34,177.33,0.339]
[1729799932725,26.26772948,177.34,177.33,0.339]
[1729799933740,26.64419948,177.34,177.33,0.339]
[1729799934949,46.64419948,177.34,177.33,0.339]
[1729799940034,26.86135608,177.34,177.33,0.339]
[1729799940236,46.64419948,177.34,177.33,0.339]
[1729799944352,26.86135608,177.34,177.33,0.339]
[1729799944531,46.64419948,177.34,177.33,0.339]
[1729799946653,26.86135608,177.34,177.33,0.339]
[1729799946850,46.64419948,177.34,177.33,0.339]
[1729799947233,0.84608608,177.34,177.33,0.339]
[1729799947641,0.84608608,177.34,177.33,20.1218434]
[1729799947844,5.6383,177.36,177.33,0.339]
[1729799948562,21.4737,177.37,177.33,0.339]
[1729799948756,20.25098,177.36,177.33,0.339]
[1729799949048,21.09703431,177.36,177.33,0.339]
[1729799950753,26.73553431,177.36,177.33,0.339]
[1729799951047,40.1593134,177.34,177.33,0.339]
[1729799951230,64.0361974,177.34,177.33,0.339]
[1729799951429,65.7634481,177.34,177.33,0.339]
[1729799953040,71.4022481,177.34,177.33,0.339]
[1729799953235,71.5022481,177.34,177.33,0.339]
[1729799953450,60.445054,177.32,177.31,0.28]
[1729799953647,80.3278974,177.32,177.31,0.28]
[1729799954041,80.4278974,177.32,177.31,0.28]
[1729799954236,60.445054,177.32,177.31,0.28]
[1729799954439,80.3278974,177.32,177.31,0.28]
[1729799954640,80.4278974,177.32,177.31,0.28]
[1729799955242,86.0673974,177.32,177.31,0.28]
[1729799956040,85.9673974,177.32,177.31,0.28]
[1729799956365,86.0673974,177.32,177.31,0.28]
[1729799957754,0.37647,177.29,177.19,26.2444434]
[1729799957935,0.25098,177.24,177.19,26.2444434]
[1729799958837,0.25098,177.24,177.2,19.7828434]
[1729799960340,25.6760234,177.24,177.19,26.2444434]
[1729799960660,5.89318,177.24,177.2,19.7828434]
[1729799960963,5.89318,177.24,177.19,26.2444434]
[1729799961144,5.89318,177.24,177.12,79.1313736]
[1729799961145,19.7828434,177.22,177.17,19.7828434]
[1729799961549,0.25098,177.22,177.18,19.7828434]
[1729799961957,0.25098,177.22,177.17,19.7828434]
[1729799962263,0.25098,177.22,177.18,19.7828434]
[1729799962843,5.89368,177.22,177.18,19.7828434]
[1729799964147,0.25098,177.22,177.18,19.7828434]
[1729799966758,5.89368,177.22,177.18,19.7828434]
[1729799967853,5.89368,177.22,177.17,19.7828434]